bitfinex/quotes_BTCUSD_20250523
["timestamp","ask_amount","ask_price","bid_price","bid_amount"]
[1748026185669,0.34255732,108780.0,108770.0,0.76054205]
[1748026185887,0.34255732,108780.0,108770.0,1.58049628]
[1748026186333,0.34255732,108780.0,108770.0,1.90457167]
[1748026186554,0.34255732,108780.0,108770.0,1.9155868]
[1748026186980,0.34255732,108780.0,108770.0,1.93397396]
[1748026187807,0.34255732,108780.0,108770.0,2.02603295]
[1748026188013,0.34255732,108780.0,108770.0,0.79101139]
[1748026188226,0.34255732,108780.0,108770.0,1.82377139]
[1748026188432,0.34255732,108780.0,108770.0,2.01683933]
[1748026188815,0.34255732,108780.0,108770.0,1.80417537]
[1748026189172,0.34255732,108780.0,108770.0,1.61110743]
[1748026190499,0.34255732,108780.0,108770.0,1.32095909]
[1748026190742,0.34255732,108780.0,108770.0,1.59643909]
[1748026194308,0.34255732,108780.0,108770.0,1.80910305]
[1748026196890,0.34255732,108780.0,108770.0,1.59643909]
[1748026198358,0.34255732,108780.0,108770.0,1.80910305]
[1748026199732,0.34255732,108780.0,108770.0,1.59643909]
[1748026200849,0.34255732,108780.0,108770.0,1.80910305]
[1748026204555,0.34115732,108780.0,108770.0,1.80910305]
[1748026204763,0.34115732,108780.0,108770.0,1.35689728]
[1748026204971,0.34115732,108780.0,108770.0,1.80842305]
[1748026205802,0.34115732,108780.0,108770.0,1.59575909]
[1748026216468,0.34115732,108780.0,108770.0,0.96035909]
[1748026216679,0.34115732,108780.0,108770.0,1.59575909]
[1748026217515,0.34115732,108780.0,108770.0,1.25575909]
[1748026218139,0.24115732,108780.0,108770.0,1.25575909]
[1748026218345,0.24215732,108780.0,108770.0,1.25575909]
[1748026218953,0.24315732,108780.0,108770.0,1.25575909]
[1748026219140,0.24315732,108780.0,108770.0,1.24474396]
[1748026219429,0.24315732,108780.0,108770.0,0.60934396]
[1748026219639,0.25235018,108780.0,108770.0,1.65966931]
[1748026219852,0.26154279,108780.0,108770.0,1.65966931]
[1748026220068,0.26154279,108780.0,108770.0,1.24478396]
[1748026221700,0.26154279,108780.0,108770.0,0.96926396]
[1748026221903,0.26154279,108780.0,108770.0,1.24478396]
[1748026222710,0.26154279,108780.0,108770.0,1.25359462]
[1748026224649,0.26154279,108780.0,108770.0,1.59359462]
[1748026228056,0.26154279,108780.0,108770.0,1.60460975]
[1748026230451,0.39582693,108780.0,108770.0,0.01982579]
[1748026230678,0.56375231,108780.0,108770.0,0.01982579]
[1748026230905,0.24896777,108770.0,108760.0,0.03278479]
[1748026231132,0.33851333,108770.0,108760.0,0.03278479]
[1748026231419,0.33851333,108770.0,108760.0,0.30830479]
[1748026231638,0.33851333,108770.0,108760.0,0.29363645]
[1748026232073,0.2207287,108730.0,108720.0,0.78927017]
[1748026232299,0.23953237,108730.0,108720.0,1.59151062]
[1748026232510,0.26913237,108730.0,108720.0,1.42218528]
[1748026232729,0.25993579,108730.0,108720.0,0.54670493]
[1748026232953,0.25993579,108730.0,108720.0,0.80177852]
[1748026233167,0.25993579,108730.0,108720.0,1.15037142]
[1748026233388,0.25993579,108730.0,108720.0,1.0005635]
[1748026233605,0.25993579,108730.0,108720.0,0.59770746]
[1748026233822,0.25993579,108730.0,108720.0,1.08589142]
[1748026234049,0.25993579,108730.0,108720.0,1.42589142]
[1748026234478,0.26093579,108730.0,108720.0,1.42989142]
[1748026234690,0.26093579,108730.0,108720.0,1.43593142]
[1748026234921,0.25993579,108730.0,108720.0,1.43193142]
[1748026235163,0.25993579,108730.0,108720.0,1.43493142]
[1748026235375,0.25993579,108730.0,108720.0,1.42893142]
[1748026235588,0.25993579,108730.0,108720.0,1.43193142]
[1748026238110,0.25993579,108730.0,108720.0,0.94374746]
[1748026238254,0.25993579,108730.0,108720.0,1.21930746]
[1748026238466,0.25993579,108730.0,108720.0,1.21934746]
[1748026238874,0.25993579,108730.0,108720.0,1.21634746]
[1748026239345,0.25993579,108730.0,108720.0,0.93978746]
[1748026239552,0.25993579,108730.0,108720.0,1.0026835]
[1748026239757,0.25993579,108730.0,108720.0,0.3698835]
[1748026239974,0.25993579,108730.0,108720.0,0.6454435]
[1748026241971,0.25993579,108730.0,108720.0,0.6434435]
[1748026242281,0.25993579,108730.0,108720.0,0.3678835]
[1748026242486,0.25993579,108730.0,108720.0,0.6434835]
[1748026243169,0.25993579,108730.0,108720.0,0.6414835]
[1748026244274,0.34948135,108730.0,108720.0,0.3014835]
[1748026245490,0.34948135,108730.0,108720.0,0.51414746]
[1748026245751,0.25993579,108730.0,108720.0,0.85414746]
[1748026246005,0.25993579,108730.0,108720.0,0.6414835]
[1748026246767,0.25993579,108730.0,108720.0,1.0008435]
[1748026247256,0.25993579,108730.0,108720.0,1.00080264]
[1748026250119,0.34948135,108730.0,108720.0,1.00080264]
[1748026255013,0.34948135,108730.0,108720.0,0.36584264]
[1748026255237,0.34948135,108730.0,108720.0,1.00012264]
[1748026258183,0.34948135,108730.0,108720.0,0.36584264]
[1748026258405,0.34948135,108730.0,108720.0,1.00012264]
[1748026260030,0.34948135,108730.0,108720.0,0.98328627]
[1748026261107,0.34948135,108730.0,108720.0,0.99208282]
[1748026265520,0.34948135,108730.0,108720.0,0.99212282]
[1748026275411,0.23033579,108730.0,108720.0,0.99212282]
[1748026275620,0.20233579,108730.0,108720.0,0.99212282]
[1748026275831,0.20233579,108730.0,108720.0,1.01442282]
[1748026276261,0.20233528,108730.0,108720.0,1.21967722]
[1748026276467,0.22072937,108730.0,108720.0,1.22887473]
[1748026276669,0.22072937,108730.0,108720.0,1.23807216]
[1748026276880,0.22072937,108730.0,108720.0,1.21967722]
[1748026277119,0.21153279,108730.0,108720.0,1.22032278]
[1748026277644,0.18394187,108730.0,108720.0,1.01077078]
[1748026277835,0.18394187,108730.0,108720.0,1.00787078]
[1748026278135,0.18394187,108730.0,108720.0,1.00887078]
[1748026278536,0.18394187,108730.0,108720.0,0.73319078]
[1748026278759,0.18394187,108730.0,108720.0,0.98657078]
[1748026278967,0.18394187,108730.0,108720.0,0.99517278]
[1748026283029,0.18394187,108730.0,108720.0,1.02027278]
[1748026283264,0.18394187,108730.0,108720.0,0.38599278]
[1748026283465,0.18394187,108730.0,108720.0,0.99513278]
[1748026285074,0.21544187,108730.0,108720.0,0.99513278]
[1748026285918,0.21544187,108730.0,108720.0,1.05155855]
[1748026286144,0.18394187,108730.0,108720.0,1.05155855]
[1748026287556,0.18394187,108730.0,108720.0,1.07665855]
[1748026287768,0.18394187,108730.0,108720.0,1.41665855]
[1748026288896,0.18394187,108730.0,108720.0,1.39155855]
[1748026290117,0.21504187,108730.0,108720.0,1.39155855]
[1748026290347,0.21504187,108730.0,108720.0,1.11591855]
[1748026290560,0.24574187,108730.0,108720.0,1.39155855]
[1748026291124,0.24574187,108730.0,108720.0,0.75731855]
[1748026291336,0.24574187,108730.0,108720.0,1.39091855]
[1748026291539,0.24574187,108730.0,108720.0,1.11527855]
[1748026291723,0.24574187,108730.0,108720.0,1.39091855]
[1748026294411,0.24574187,108730.0,108720.0,1.11527855]
[1748026294661,0.24574187,108730.0,108720.0,1.39091855]
[1748026294827,0.24574187,108730.0,108720.0,1.39087855]
[1748026304927,0.24574187,108730.0,108720.0,1.40187988]
[1748026306298,0.21504187,108730.0,108720.0,1.58583867]
[1748026306559,0.21504187,108730.0,108720.0,1.40187988]
[1748026307783,0.21504187,108730.0,108720.0,1.5950366]
[1748026308040,0.21504187,108730.0,108720.0,1.40187988]
[1748026308678,0.18394187,108730.0,108720.0,1.40187988]
[1748026309357,0.21304187,108730.0,108720.0,1.40187988]
[1748026311225,0.18394187,108730.0,108720.0,1.5950366]
[1748026313060,0.18394187,108730.0,108720.0,1.40187988]
[1748026313269,0.21304187,108730.0,108720.0,1.40187988]
[1748026313911,0.21304187,108730.0,108720.0,1.58583867]
[1748026314498,0.19313887,108730.0,108720.0,1.69912301]
[1748026314699,0.22223887,108730.0,108720.0,1.40187988]
[1748026314907,0.25243887,108730.0,108720.0,1.40187988]
[1748026315333,0.25243887,108730.0,108720.0,0.76831988]
[1748026315498,0.25243887,108730.0,108720.0,1.40187988]
[1748026316087,0.25243887,108730.0,108720.0,1.12623988]
[1748026316300,0.25243887,108730.0,108720.0,1.40187988]
[1748026325903,0.25243887,108730.0,108720.0,0.76831988]
[1748026326168,0.02586121,108740.0,108730.0,0.02759025]
[1748026326398,0.01839113,108740.0,108730.0,0.25397297]
[1748026326622,0.02758703,108740.0,108730.0,0.34351853]
[1748026326853,0.01839011,108750.0,108740.0,0.21685702]
[1748026327061,0.19310327,108750.0,108740.0,0.93936342]
[1748026327266,0.22068878,108750.0,108740.0,0.94855916]
[1748026327477,0.22068878,108750.0,108740.0,0.93936342]
[1748026327681,0.22068878,108750.0,108740.0,0.94855916]
[1748026327887,0.22988418,108750.0,108740.0,0.96835712]
[1748026328094,0.22988418,108750.0,108740.0,0.97755286]
[1748026328300,0.23188418,108750.0,108740.0,0.97755286]
[1748026328480,0.21349398,108750.0,108740.0,0.9499654]
[1748026328719,0.21349398,108750.0,108740.0,0.95916139]
[1748026328897,0.21449398,108750.0,108740.0,0.95916139]
[1748026329131,0.23479875,108750.0,108740.0,0.95916139]
[1748026329342,0.25350344,108750.0,108740.0,0.76299655]
[1748026329548,0.25250344,108750.0,108740.0,1.03859655]
[1748026331510,0.19312102,108740.0,108730.0,0.64311135]
[1748026331710,0.19312102,108740.0,108730.0,0.60355135]
[1748026332132,0.22422102,108740.0,108730.0,0.60355135]
[1748026332351,0.22422102,108740.0,108730.0,0.59255002]
[1748026332569,0.25342102,108740.0,108730.0,0.64742085]
[1748026332766,0.25342102,108740.0,108730.0,0.65042085]
[1748026333001,0.25342102,108740.0,108730.0,0.84355972]
[1748026333407,0.25342102,108740.0,108730.0,1.18355972]
[1748026334092,0.26261701,108740.0,108730.0,1.20195339]
[1748026334303,0.23341701,108740.0,108730.0,1.20195339]
[1748026334725,0.26261701,108740.0,108730.0,1.20195339]
[1748026335438,0.25342102,108740.0,108730.0,0.71482085]
[1748026335650,0.24422495,108740.0,108730.0,1.17436272]
[1748026335853,0.24422495,108740.0,108730.0,1.18355964]
[1748026336466,0.21502495,108740.0,108730.0,1.58039964]
[1748026336667,0.21502495,108740.0,108730.0,1.58959647]
[1748026336869,0.21502495,108740.0,108730.0,0.95671647]
[1748026337077,0.21502495,108740.0,108730.0,1.58959647]
[1748026337453,0.21502495,108740.0,108730.0,1.58039964]
[1748026337666,0.24422495,108740.0,108730.0,1.09712]
[1748026337823,0.24422495,108740.0,108730.0,1.56585896]
[1748026338030,0.24422495,108740.0,108730.0,1.57505579]
[1748026338409,0.24422495,108740.0,108730.0,1.56585896]
[1748026338604,0.24422495,108740.0,108730.0,1.57505596]
[1748026338835,0.24422495,108740.0,108730.0,1.38191709]
[1748026339361,0.24422495,108740.0,108730.0,1.37272]
[1748026340570,0.24422495,108740.0,108730.0,1.55666187]
[1748026340926,0.21502495,108740.0,108730.0,1.58039981]
[1748026341131,0.01839164,108740.0,108730.0,1.60799006]
[1748026341338,0.0275878,108740.0,108730.0,1.60799006]
[1748026341542,0.21151275,108740.0,108730.0,1.60799006]
[1748026341954,0.21151275,108740.0,108730.0,1.61899139]
[1748026342119,0.22070899,108740.0,108730.0,1.61899139]
[1748026342312,0.22990481,108740.0,108730.0,1.60979489]
[1748026342524,0.22990481,108740.0,108730.0,1.61899147]
[1748026342937,0.22990481,108740.0,108730.0,1.62818797]
[1748026343803,0.22990481,108740.0,108730.0,1.60979489]
[1748026343985,0.22070924,108740.0,108730.0,1.60979489]
[1748026344198,0.22070924,108740.0,108730.0,1.61899147]
[1748026344501,0.22070924,108740.0,108730.0,1.62818797]
[1748026344658,0.22070924,108740.0,108730.0,1.63698437]
[1748026345017,0.02758805,108740.0,108730.0,1.63698437]
[1748026345297,0.22070924,108740.0,108730.0,1.61859129]
[1748026345501,0.22070924,108740.0,108730.0,1.62778796]
[1748026345719,0.22070924,108740.0,108730.0,1.61859129]
[1748026345866,0.21151342,108740.0,108730.0,1.61859129]
[1748026346067,0.20231735,108740.0,108730.0,1.60939454]
[1748026346295,0.20231735,108740.0,108730.0,1.7173336]
[1748026346537,0.01839206,108740.0,108730.0,1.72653018]
[1748026346869,0.20231701,108740.0,108730.0,1.72652959]
[1748026347053,0.20231701,108740.0,108730.0,1.75302959]
[1748026347549,0.21151325,108740.0,108730.0,1.72652959]
[1748026347796,0.01839155,108740.0,108730.0,2.16642959]
[1748026348010,0.02758762,108740.0,108730.0,2.13992959]
[1748026348535,0.24281316,108740.0,108730.0,2.09394601]
[1748026348741,0.27251316,108740.0,108730.0,2.1031431]
[1748026348961,0.27251316,108740.0,108730.0,2.11234002]
[1748026349855,0.27251316,108740.0,108730.0,2.12153685]
[1748026350447,0.26331726,108740.0,108730.0,1.80531773]
[1748026350665,0.26331726,108740.0,108730.0,1.99845669]
[1748026351067,0.25412119,108740.0,108730.0,1.80531773]
[1748026351215,0.25412119,108740.0,108730.0,1.99845669]
[1748026351796,0.25412119,108740.0,108730.0,2.00765361]
[1748026352094,0.25412119,108740.0,108730.0,1.99845669]
[1748026353642,0.25412119,108740.0,108730.0,1.58505669]
[1748026353997,0.24492495,108740.0,108730.0,1.58505669]
[1748026354201,0.24492495,108740.0,108730.0,0.95277669]
[1748026354400,0.24492495,108740.0,108730.0,1.58505669]
[1748026354893,0.24492495,108740.0,108730.0,1.59972503]
[1748026355116,0.24492495,108740.0,108730.0,1.61811878]
[1748026355436,0.24492495,108740.0,108730.0,1.60892203]
[1748026355649,0.24492495,108740.0,108730.0,1.61811895]
[1748026355860,0.24492495,108740.0,108730.0,1.60711762]
[1748026359730,0.24492495,108740.0,108730.0,1.6308553]
[1748026360469,0.24492495,108740.0,108730.0,1.5979207]
[1748026360830,0.24492495,108740.0,108730.0,1.3131237]
[1748026361034,0.24492495,108740.0,108730.0,0.77994474]
[1748026361387,0.24492495,108740.0,108730.0,0.4196158]
[1748026361683,0.24492495,108740.0,108730.0,1.3918558]
[1748026361880,0.24492495,108740.0,108730.0,1.40046359]
[1748026362179,0.24492495,108740.0,108730.0,1.06046359]
[1748026362382,0.24492495,108740.0,108730.0,1.40046359]
[1748026362532,0.24492495,108740.0,108730.0,1.38944419]
[1748026362933,0.24492495,108740.0,108730.0,1.38644419]
[1748026363130,0.24592495,108740.0,108730.0,1.38644419]
[1748026363334,0.24792495,108740.0,108730.0,1.38644419]
[1748026365929,0.24792495,108740.0,108730.0,0.97689819]
[1748026367926,0.24792495,108740.0,108730.0,0.34457819]
[1748026368151,0.24792495,108740.0,108730.0,0.97689819]
[1748026370444,0.33747051,108740.0,108730.0,0.70129819]
[1748026370647,0.33747051,108740.0,108730.0,0.00457819]
[1748026370848,0.33747051,108740.0,108730.0,0.63689819]
[1748026376664,0.33747051,108740.0,108730.0,0.00457819]
[1748026376868,0.33747051,108740.0,108700.0,0.0130594]
[1748026376869,1.07787134,108740.0,108700.0,0.0130594]
[1748026377077,0.02759736,108700.0,108690.0,0.04225134]
[1748026377308,0.005,108670.0,108660.0,4e-05]
[1748026377525,0.76034922,108670.0,108660.0,4e-05]
[1748026377742,0.42853142,108670.0,108660.0,0.00016436]
[1748026378005,0.57537494,108660.0,108640.0,0.637238]
[1748026378207,0.9863216,108650.0,108640.0,0.637238]
[1748026378414,0.6077425,108650.0,108640.0,0.6377442]
[1748026378622,0.74672448,108650.0,108640.0,0.9133842]
[1748026378822,0.60641817,108650.0,108640.0,0.87686761]
[1748026379027,0.56802861,108650.0,108640.0,0.87686761]
[1748026379265,0.19329879,108640.0,108630.0,4e-05]
[1748026379473,0.67415888,108630.0,108620.0,0.11046477]
[1748026379674,0.24895218,108610.0,108600.0,0.12344991]
[1748026379875,0.24795218,108610.0,108600.0,0.12344991]
[1748026380083,0.24795218,108610.0,108600.0,0.88876991]
[1748026380293,0.24795218,108610.0,108600.0,0.00328178]
[1748026380506,0.33649774,108610.0,108600.0,0.76860178]
[1748026381123,0.33700404,108610.0,108600.0,0.76860178]
[1748026381335,0.35154489,108610.0,108600.0,0.76860178]
[1748026382250,0.7508055,108610.0,108600.0,0.00328178]
[1748026382435,0.84032701,108610.0,108600.0,0.00328178]
[1748026382646,0.51598647,108610.0,108600.0,0.00328178]
[1748026382852,0.51798647,108610.0,108600.0,0.00428178]
[1748026383461,0.7538055,108610.0,108600.0,0.00428178]
[1748026383686,0.42846496,108610.0,108600.0,0.00428178]
[1748026383852,0.7538055,108610.0,108600.0,0.00428178]
[1748026384052,1.0938055,108610.0,108600.0,0.00428178]
[1748026384329,0.76846496,108610.0,108600.0,0.00428178]
[1748026384727,0.76646496,108610.0,108600.0,0.00328178]
[1748026384956,0.85598647,108610.0,108600.0,0.00328178]
[1748026385092,0.35154489,108610.0,108600.0,0.00328178]
[1748026385290,0.33700404,108610.0,108600.0,0.76912178]
[1748026385551,0.33900404,108610.0,108600.0,0.00328178]
[1748026385754,0.33900404,108610.0,108600.0,0.76912178]
[1748026386150,0.34300404,108610.0,108600.0,0.77012178]
[1748026386770,0.31760404,108610.0,108600.0,0.77012178]
[1748026390387,0.31760404,108610.0,108600.0,0.77016178]
[1748026391324,0.31760404,108610.0,108600.0,0.49424178]
[1748026391634,0.34910404,108610.0,108600.0,0.77020178]
[1748026392344,0.28740404,108610.0,108600.0,0.77020178]
[1748026395022,0.28740404,108610.0,108600.0,0.49424178]
[1748026395228,0.28740404,108610.0,108600.0,0.77020178]
[1748026396473,0.28740404,108610.0,108600.0,1.42050992]
[1748026398219,0.28740404,108610.0,108600.0,0.77020178]
[1748026398391,0.28740404,108610.0,108600.0,1.42050992]
[1748026398590,0.28740404,108610.0,108600.0,1.42897854]
[1748026398832,0.19785848,108610.0,108600.0,1.42897854]
[1748026399047,0.19785848,108610.0,108600.0,1.43897854]
[1748026399475,0.20706573,108610.0,108600.0,1.9631406]
[1748026399649,0.20706573,108610.0,108600.0,1.9947406]
[1748026399853,0.20706573,108610.0,108600.0,1.9631406]
[1748026400054,0.20706573,108610.0,108600.0,1.77897854]
[1748026400830,0.18412815,108620.0,108610.0,0.01]
[1748026401030,0.18412815,108620.0,108610.0,0.66030814]
[1748026401252,0.18412815,108620.0,108610.0,0.42156552]
[1748026401475,0.18412815,108620.0,108610.0,0.43003414]
[1748026402083,0.28921456,108620.0,108610.0,0.33362269]
[1748026402451,0.29221456,108620.0,108610.0,0.61058269]
[1748026402987,0.18812815,108620.0,108610.0,0.61058269]
[1748026405623,0.202669,108620.0,108610.0,0.61058269]
[1748026406674,0.18812815,108620.0,108610.0,0.61058269]
[1748026407066,0.19670447,108620.0,108610.0,0.61058269]
[1748026407477,0.19670447,108620.0,108610.0,0.28542862]
[1748026407742,0.19670447,108620.0,108610.0,0.61058269]
[1748026408751,0.19670447,108620.0,108610.0,1.00794269]
[1748026408970,0.21124532,108620.0,108610.0,0.73198269]
[1748026409166,0.30079088,108620.0,108610.0,1.00794269]
[1748026410276,0.42085427,108620.0,108610.0,0.00946862]
[1748026410423,0.42085427,108620.0,108610.0,1.08606269]
[1748026410622,0.36099088,108620.0,108610.0,1.08606269]
[1748026411287,0.33179088,108620.0,108610.0,1.08606269]
[1748026411486,0.30079088,108620.0,108610.0,1.08606269]
[1748026412099,0.31156441,108620.0,108610.0,1.08606269]
[1748026412860,0.31156441,108620.0,108610.0,0.33462269]
[1748026413069,0.31156441,108620.0,108610.0,1.08610269]
[1748026414871,0.31156441,108620.0,108610.0,1.07663407]
[1748026415073,0.31156441,108620.0,108610.0,0.32515407]
[1748026415273,0.31156441,108620.0,108610.0,1.07663407]
[1748026416067,0.30079088,108620.0,108610.0,1.07663407]
[1748026418103,0.36349088,108620.0,108610.0,1.07663407]
[1748026419187,0.35491456,108620.0,108610.0,1.07663407]
[1748026419395,0.29221456,108620.0,108610.0,1.07663407]
[1748026421727,0.1841451,108610.0,108600.0,0.03]
[1748026421941,0.1841451,108610.0,108600.0,1.15582814]
[1748026422776,0.1851451,108610.0,108600.0,1.15782814]
[1748026422978,0.1851451,108610.0,108600.0,1.43578814]
[1748026424549,0.1851451,108610.0,108600.0,0.78542221]
[1748026424784,0.1851451,108610.0,108600.0,0.81662221]
[1748026425231,0.1851451,108610.0,108600.0,1.3499922]
[1748026425462,0.19435218,108610.0,108600.0,1.34999237]
[1748026425690,0.19435218,108610.0,108600.0,1.35920038]
[1748026425915,0.19435218,108610.0,108600.0,1.36840831]
[1748026426136,0.19435218,108610.0,108600.0,1.43840831]
[1748026426356,0.1851451,108610.0,108600.0,2.29608831]
[1748026426575,0.1851451,108610.0,108600.0,2.30529615]
[1748026426820,0.01941323,108610.0,108600.0,2.31450331]
[1748026427059,0.02862006,108610.0,108600.0,2.31450331]
[1748026427274,0.001,108610.0,108600.0,2.40404887]
[1748026427499,0.01941357,108610.0,108600.0,2.43444887]
[1748026427724,0.01020666,108610.0,108600.0,2.43444887]
[1748026427949,0.0286204,108610.0,108600.0,2.43444887]
[1748026428645,0.0194134,108610.0,108600.0,2.43444887]
[1748026429342,0.00636421,108650.0,108640.0,0.01840848]
[1748026429573,0.00636421,108650.0,108640.0,0.0589131]
[1748026429798,0.03186426,108690.0,108680.0,0.02760295]
[1748026430018,0.03186426,108690.0,108680.0,1.68293551]
[1748026430234,0.03186426,108690.0,108680.0,2.58613258]
[1748026430453,0.00636715,108700.0,108690.0,1.2019181]
[1748026430670,0.04731857,108720.0,108710.0,1.16036301]
[1748026430888,0.07031418,108730.0,108710.0,1.24990857]
[1748026431125,0.06111693,108730.0,108720.0,0.4179057]
[1748026431344,0.26702313,108760.0,108750.0,0.01839054]
[1748026431345,0.05947953,108760.0,108750.0,0.01839054]
[1748026431564,0.09012309,108770.0,108760.0,0.37929447]
[1748026431565,0.06254209,108770.0,108760.0,0.37929447]
[1748026431781,0.08092857,108770.0,108760.0,0.93743388]
[1748026431995,0.37273526,108770.0,108760.0,1.54223407]
[1748026432277,0.58804621,108770.0,108760.0,1.54223407]
[1748026432591,0.23552306,108780.0,108760.0,1.54223407]
[1748026432592,0.04166491,108780.0,108770.0,0.0275801]
[1748026432816,0.23471501,108780.0,108770.0,0.92618958]
[1748026433091,0.23471501,108780.0,108770.0,0.60103551]
[1748026433307,0.06005021,108780.0,108770.0,1.12845063]
[1748026433553,0.06924307,108780.0,108770.0,1.11925735]
[1748026433797,0.25310039,108780.0,108770.0,0.66475892]
[1748026434030,0.24390787,108780.0,108770.0,0.27588144]
[1748026434250,0.30770787,108780.0,108770.0,0.61588144]
[1748026434523,0.30770787,108780.0,108770.0,4.144e-05]
[1748026434745,0.60194722,108780.0,108770.0,4.144e-05]
[1748026434984,0.70603363,108780.0,108770.0,0.27688144]
[1748026435205,1.09491111,108780.0,108770.0,0.00104144]
[1748026435423,1.43491111,108780.0,108770.0,4.144e-05]
[1748026435633,1.52443262,108780.0,108770.0,4.144e-05]
[1748026435872,1.13555514,108780.0,108770.0,4.144e-05]
[1748026436123,0.41179428,108780.0,108770.0,4.144e-05]
[1748026436603,0.4026015,108780.0,108770.0,4.144e-05]
[1748026437027,0.4056015,108780.0,108770.0,4.144e-05]
[1748026437450,0.36093659,108780.0,108770.0,4.144e-05]
[1748026437647,0.36493659,108780.0,108770.0,4.144e-05]
[1748026438452,0.36493659,108780.0,108770.0,0.27580144]
[1748026440552,0.36493659,108780.0,108770.0,4.144e-05]
[1748026440763,0.36493659,108780.0,108770.0,0.27572144]
[1748026441162,0.36493659,108780.0,108770.0,4.144e-05]
[1748026442879,0.8436002,108780.0,108770.0,4.144e-05]
[1748026443487,0.35039574,108780.0,108770.0,4.144e-05]
[1748026443658,0.35039574,108780.0,108770.0,0.27568144]
[1748026443900,0.34639574,108780.0,108770.0,0.27568144]
[1748026444103,0.35339574,108780.0,108770.0,0.00104144]
[1748026444499,0.34639574,108780.0,108770.0,4.144e-05]
[1748026444694,0.35039574,108780.0,108770.0,4.144e-05]
[1748026447017,0.35039574,108780.0,108770.0,0.27568144]
[1748026447218,0.35039574,108780.0,108770.0,0.27572144]
[1748026450885,0.35039574,108780.0,108770.0,8.144e-05]
[1748026451032,0.43991725,108780.0,108770.0,0.27568144]
[1748026451233,0.21151241,108740.0,108730.0,0.05895654]
[1748026451473,0.20231693,108740.0,108730.0,0.58474055]
[1748026451703,0.20231693,108740.0,108730.0,0.65474055]
[1748026452077,0.02758797,108740.0,108730.0,0.66393705]
[1748026452308,0.01839173,108740.0,108730.0,0.66393705]
[1748026452518,0.03678396,108740.0,108730.0,0.93953705]
[1748026453228,0.22070891,108740.0,108730.0,1.2940779]
[1748026453432,0.03678396,108740.0,108730.0,1.2940779]
[1748026453646,0.22990515,108740.0,108730.0,1.2940779]
[1748026453881,0.22990515,108740.0,108730.0,1.2970779]
[1748026454383,0.22990515,108740.0,108730.0,1.29707807]
[1748026454586,0.22990515,108740.0,108730.0,1.29711807]
[1748026455085,0.22990515,108740.0,108730.0,1.30631465]
[1748026455488,0.22990515,108740.0,108730.0,1.27872465]
[1748026455700,0.22070941,108740.0,108730.0,1.26952782]
[1748026455856,0.22070941,108740.0,108730.0,1.27872465]
[1748026456056,0.22070941,108740.0,108730.0,1.2289652]
[1748026456306,0.22070941,108740.0,108730.0,1.21976811]
[1748026456638,0.20231735,108740.0,108730.0,1.21976811]
[1748026457107,0.19312119,108740.0,108730.0,1.20500811]
[1748026457454,0.19312119,108740.0,108730.0,1.21371792]
[1748026457856,0.19312119,108740.0,108730.0,1.21291792]
[1748026458078,0.19312119,108740.0,108730.0,1.06123909]
[1748026458311,0.19312119,108740.0,108730.0,0.80321066]
[1748026460025,0.20233546,108730.0,108720.0,0.45019072]
[1748026460201,0.2023352,108730.0,108720.0,0.82078123]
[1748026460430,0.03678649,108730.0,108720.0,1.17546715]
[1748026460635,0.22992545,108730.0,108720.0,1.16626981]
[1748026460839,0.22992545,108730.0,108720.0,1.15707238]
[1748026461047,0.21201963,108740.0,108730.0,0.19313896]
[1748026461254,0.21201954,108740.0,108730.0,0.30107827]
[1748026461655,0.22121578,108740.0,108730.0,1.10184145]
[1748026461957,0.21201954,108740.0,108730.0,1.46557888]
[1748026462163,0.2212157,108740.0,108730.0,1.46557888]
[1748026462372,0.00050697,108740.0,108730.0,0.68869829]
[1748026462596,0.02809409,108740.0,108730.0,1.46557829]
[1748026462793,0.01889819,108740.0,108730.0,1.46557829]
[1748026463002,0.00970245,108740.0,108730.0,1.46557829]
[1748026463209,0.028094,108740.0,108730.0,1.46557829]
[1748026463424,0.0188981,108740.0,108730.0,1.46757829]
[1748026463625,0.02809392,108740.0,108730.0,1.46757829]
[1748026464171,0.03728991,108740.0,108730.0,1.46757829]
[1748026464373,0.02809392,108740.0,108730.0,1.46757829]
[1748026464545,0.03728982,108740.0,108730.0,1.46757829]
[1748026464768,0.02809392,108740.0,108730.0,1.46757829]
[1748026464974,0.03728982,108740.0,108730.0,1.46757829]
[1748026466047,0.03728991,108740.0,108730.0,1.46757829]
[1748026466250,0.03637127,108740.0,108730.0,1.46757829]
[1748026466471,0.02717528,108740.0,108730.0,1.45289178]
[1748026468172,0.03637127,108740.0,108730.0,1.45289178]
[1748026468675,0.02717528,108740.0,108730.0,1.45289178]
[1748026469075,0.02256694,108740.0,108730.0,1.45289178]
[1748026469615,0.00417547,108740.0,108730.0,1.45289178]
[1748026469833,0.01337112,108740.0,108730.0,1.45289178]
[1748026470133,0.00919565,108740.0,108730.0,1.45293178]
[1748026470335,0.19311831,108750.0,108740.0,0.53312111]
[1748026470474,0.19311831,108750.0,108740.0,0.9391586]
[1748026470899,0.01838961,108750.0,108740.0,0.95754956]
[1748026471296,0.03408631,108750.0,108740.0,1.04709512]
[1748026471502,0.21147436,108760.0,108750.0,0.21683909]
[1748026471704,0.02758255,108760.0,108750.0,0.84159398]
[1748026471883,0.02758255,108760.0,108750.0,0.85627317]
[1748026472081,0.28700124,108770.0,108760.0,0.55682083]
[1748026472284,0.28700124,108770.0,108760.0,1.03442645]
[1748026472486,0.27780779,108770.0,108760.0,0.84134085]
[1748026472709,0.30910779,108770.0,108760.0,0.84134085]
[1748026472892,0.27780779,108770.0,108760.0,1.03442653]
[1748026473277,0.26861425,108770.0,108760.0,0.87401875]
[1748026473526,0.19806794,108770.0,108760.0,0.87401875]
[1748026474119,0.19806794,108770.0,108760.0,0.8648242]
[1748026474791,0.19806794,108770.0,108760.0,1.1403842]
[1748026475225,0.19806794,108770.0,108760.0,1.1404242]
[1748026475718,0.20726139,108770.0,108760.0,1.3427041]
[1748026475945,0.01419295,108770.0,108760.0,1.36109219]
[1748026476084,0.23484074,108770.0,108760.0,1.35189823]
[1748026476288,0.0417728,108770.0,108760.0,1.37028623]
[1748026476495,0.23484065,108770.0,108760.0,1.37028623]
[1748026476698,0.0417728,108770.0,108760.0,1.37028623]
[1748026476948,0.23484065,108770.0,108760.0,1.37028623]
[1748026477277,0.05096642,108770.0,108760.0,1.37028623]
[1748026477473,0.2164551,108770.0,108760.0,0.5711498]
[1748026477676,0.2164551,108770.0,108760.0,1.34266418]
[1748026477906,0.2164551,108770.0,108760.0,1.35185848]
[1748026479122,0.2164551,108770.0,108760.0,1.36105269]
[1748026479335,0.2164551,108770.0,108760.0,1.35185848]
[1748026479540,0.2164551,108770.0,108760.0,1.36105269]
[1748026479725,0.2164551,108770.0,108760.0,1.35185848]
[1748026480395,0.2164551,108770.0,108760.0,1.34817007]
[1748026480808,0.2164551,108770.0,108760.0,1.35736428]
[1748026481746,0.20726156,108770.0,108760.0,1.08728934]
[1748026481950,0.20726156,108770.0,108760.0,1.36280934]
[1748026482737,0.20726156,108770.0,108760.0,1.37200355]
[1748026482908,0.20726156,108770.0,108760.0,1.35732428]
[1748026483471,0.20726156,108770.0,108760.0,1.12497705]
[1748026483763,0.20726156,108770.0,108760.0,0.99397935]
[1748026484213,0.20726156,108770.0,108760.0,0.97559084]